[Event "Late-Titled-Tuesday-Blitz-April-02-2024"]
[Site "Chess.com"]
[Date "2024.04.02"]
[Round "4"]
[White "Andrei_Skvortsov"]
[Black "prochn"]
[Result "1-0"]
[WhiteElo "2666"]
[BlackElo "2526"]
[TimeControl "180+1"]
[EndTime "14:37:29 PDT"]
[Termination "Andrei_Skvortsov won on time"]

1. e4 {[%clk 0:03:00.9]} 1... c6 {[%clk 0:03:00]} 2. e5 {[%clk 0:02:58.4]} 2...
d6 {[%clk 0:02:49.6]} 3. exd6 {[%clk 0:02:59.3]} 3... exd6 {[%clk 0:02:49.3]} 4.
d4 {[%clk 0:02:59.7]} 4... d5 {[%clk 0:02:47.4]} 5. Nf3 {[%clk 0:03:00.3]} 5...
Nf6 {[%clk 0:02:46]} 6. Bd3 {[%clk 0:03:00.9]} 6... Be7 {[%clk 0:02:40.6]} 7. h3
{[%clk 0:03:00.2]} 7... O-O {[%clk 0:02:40]} 8. O-O {[%clk 0:03:00.8]} 8... Re8
{[%clk 0:02:39.2]} 9. Re1 {[%clk 0:03:00.8]} 9... h6 {[%clk 0:02:38.2]} 10. Bf4
{[%clk 0:02:58.7]} 10... Nbd7 {[%clk 0:02:32]} 11. Nc3 {[%clk 0:02:55.8]} 11...
Nf8 {[%clk 0:02:30.1]} 12. Qd2 {[%clk 0:02:53.7]} 12... Be6 {[%clk 0:02:00.8]}
13. Ne5 {[%clk 0:02:52.5]} 13... c5 {[%clk 0:01:50.9]} 14. Bb5 {[%clk
0:02:44.4]} 14... N8d7 {[%clk 0:01:41.1]} 15. Ng6 {[%clk 0:02:36.4]} 15... a6
{[%clk 0:01:35.2]} 16. Nxe7+ {[%clk 0:02:35.7]} 16... Rxe7 {[%clk 0:01:35.2]}
17. Bf1 {[%clk 0:02:30.1]} 17... c4 {[%clk 0:01:29.9]} 18. Bd6 {[%clk
0:02:22.1]} 18... Re8 {[%clk 0:01:29.4]} 19. Qf4 {[%clk 0:02:21.1]} 19... b5
{[%clk 0:01:26.6]} 20. a3 {[%clk 0:02:20.2]} 20... Qb6 {[%clk 0:01:21.7]} 21.
Rad1 {[%clk 0:02:17.2]} 21... a5 {[%clk 0:01:16]} 22. Bc7 {[%clk 0:02:16.4]}
22... Qc6 {[%clk 0:01:15.4]} 23. Qd6 {[%clk 0:02:14.3]} 23... Qb7 {[%clk
0:00:56.9]} 24. Qh2 {[%clk 0:02:13.3]} 24... b4 {[%clk 0:00:56.1]} 25. Nb1
{[%clk 0:02:07.3]} 25... Ne4 {[%clk 0:00:43.2]} 26. f3 {[%clk 0:02:03]} 26...
Nef6 {[%clk 0:00:41.8]} 27. g4 {[%clk 0:01:38.1]} 27... Rec8 {[%clk 0:00:30.4]}
28. Bd6 {[%clk 0:01:36.6]} 28... Qb6 {[%clk 0:00:25.1]} 29. a4 {[%clk
0:01:29.7]} 29... b3 {[%clk 0:00:20.4]} 30. c3 {[%clk 0:01:26.7]} 30... Qc6
{[%clk 0:00:20.4]} 31. h4 {[%clk 0:01:23.9]} 31... Nh7 {[%clk 0:00:18]} 32. Bf4
{[%clk 0:01:17.6]} 32... Qxa4 {[%clk 0:00:17.1]} 33. g5 {[%clk 0:01:15.4]} 33...
h5 {[%clk 0:00:15.8]} 34. g6 {[%clk 0:01:14.6]} 34... Nhf6 {[%clk 0:00:14]} 35.
Bg5 {[%clk 0:01:12.9]} 35... Qc6 {[%clk 0:00:12.8]} 36. gxf7+ {[%clk 0:01:12.6]}
36... Bxf7 {[%clk 0:00:12.9]} 37. Bh3 {[%clk 0:01:12.6]} 37... Re8 {[%clk
0:00:12.6]} 38. Qf4 {[%clk 0:01:06.8]} 38... a4 {[%clk 0:00:12.3]} 39. Bf5
{[%clk 0:01:03.8]} 39... a3 {[%clk 0:00:11.2]} 40. Nxa3 {[%clk 0:01:00]} 40...
Rxe1+ {[%clk 0:00:07.6]} 41. Rxe1 {[%clk 0:01:00.1]} 41... Re8 {[%clk
0:00:07.9]} 42. Qd2 {[%clk 0:00:57.1]} 42... Qa8 {[%clk 0:00:06.6]} 43. Nb5
{[%clk 0:00:55.2]} 43... Rxe1+ {[%clk 0:00:04.6]} 44. Qxe1 {[%clk 0:00:54.8]}
44... Qe8 {[%clk 0:00:03.6]} 45. Qxe8+ {[%clk 0:00:53.8]} 45... Bxe8 {[%clk
0:00:01.7]} 46. Kf2 {[%clk 0:00:50.8]} 1-0

[Event "Late-Titled-Tuesday-Blitz-April-02-2024"]
[Site "Chess.com"]
[Date "2024.04.02"]
[Round "4"]
[White "subham777"]
[Black "CarlosjPineror"]
[Result "1-0"]
[WhiteElo "2566"]
[BlackElo "2671"]
[TimeControl "180+1"]
[EndTime "14:37:31 PDT"]
[Termination "subham777 won by resignation"]

1. e4 {[%clk 0:03:00.9]} 1... c5 {[%clk 0:02:58.9]} 2. Nf3 {[%clk 0:03:01.1]}
2... e6 {[%clk 0:02:58.8]} 3. g3 {[%clk 0:03:01.1]} 3... Nc6 {[%clk 0:02:56.7]}
4. Bg2 {[%clk 0:03:01.2]} 4... e5 {[%clk 0:02:55.1]} 5. O-O {[%clk 0:02:59.6]}
5... g6 {[%clk 0:02:55.3]} 6. c3 {[%clk 0:02:59.8]} 6... Bg7 {[%clk 0:02:55.9]}
7. Na3 {[%clk 0:02:52.6]} 7... d6 {[%clk 0:02:55.2]} 8. d4 {[%clk 0:02:49.5]}
8... Bg4 {[%clk 0:02:53.3]} 9. Qb3 {[%clk 0:02:37.4]} 9... Na5 {[%clk
0:02:40.8]} 10. Qa4+ {[%clk 0:02:31.7]} 10... Bd7 {[%clk 0:02:37.8]} 11. Qd1
{[%clk 0:02:26.8]} 11... Ne7 {[%clk 0:02:26.1]} 12. Be3 {[%clk 0:01:59.3]} 12...
b6 {[%clk 0:02:16.6]} 13. b4 {[%clk 0:01:43]} 13... cxb4 {[%clk 0:02:05.4]} 14.
cxb4 {[%clk 0:01:43.9]} 14... Nac6 {[%clk 0:02:05.9]} 15. b5 {[%clk 0:01:38.4]}
15... Na5 {[%clk 0:02:05.9]} 16. dxe5 {[%clk 0:01:32.9]} 16... dxe5 {[%clk
0:02:03.8]} 17. Qd6 {[%clk 0:01:33.2]} 17... Bg4 {[%clk 0:01:59.5]} 18. Qb4
{[%clk 0:01:20.5]} 18... O-O {[%clk 0:01:50]} 19. Rfd1 {[%clk 0:01:14.5]} 19...
Qc7 {[%clk 0:01:49.2]} 20. Rac1 {[%clk 0:01:12.5]} 20... Qb7 {[%clk 0:01:48.5]}
21. Qd6 {[%clk 0:01:03.7]} 21... Bxf3 {[%clk 0:01:15.7]} 22. Bxf3 {[%clk
0:00:55.4]} 22... Rac8 {[%clk 0:01:12.7]} 23. Rxc8 {[%clk 0:00:37.4]} 23... Nxc8
{[%clk 0:01:01.2]} 24. Qd7 {[%clk 0:00:36.8]} 24... h5 {[%clk 0:00:54.3]} 25.
Qxb7 {[%clk 0:00:27.1]} 25... Nxb7 {[%clk 0:00:55.2]} 26. Rd7 {[%clk 0:00:22]}
26... Na5 {[%clk 0:00:46.8]} 27. Bd2 {[%clk 0:00:20.8]} 27... Kh7 {[%clk
0:00:31.8]} 28. Bxa5 {[%clk 0:00:20.3]} 28... bxa5 {[%clk 0:00:32.1]} 29. Nc4
{[%clk 0:00:21]} 29... a4 {[%clk 0:00:31.9]} 30. Na5 {[%clk 0:00:20]} 30... Bh6
{[%clk 0:00:28.9]} 31. Nc6 {[%clk 0:00:19.1]} 31... Bd2 {[%clk 0:00:25]} 32.
Rxd2 {[%clk 0:00:17.5]} 32... Kh6 {[%clk 0:00:23.6]} 33. Rd7 {[%clk 0:00:17.1]}
33... f5 {[%clk 0:00:23.8]} 34. Rd8 {[%clk 0:00:13.6]} 34... Rxd8 {[%clk
0:00:21.3]} 35. Nxd8 {[%clk 0:00:14.5]} 35... Nd6 {[%clk 0:00:22.2]} 36. exf5
{[%clk 0:00:13.8]} 36... e4 {[%clk 0:00:22.7]} 37. Be2 {[%clk 0:00:11]} 37...
gxf5 {[%clk 0:00:23.4]} 38. Nc6 {[%clk 0:00:11.1]} 38... a3 {[%clk 0:00:23.7]}
39. Nxa7 {[%clk 0:00:10.8]} 39... Kg5 {[%clk 0:00:23.6]} 40. b6 {[%clk 0:00:11]}
40... h4 {[%clk 0:00:23.6]} 41. Ba6 {[%clk 0:00:10.1]} 41... f4 {[%clk
0:00:23.1]} 42. gxf4+ {[%clk 0:00:09]} 42... Kxf4 {[%clk 0:00:23.1]} 43. Nb5
{[%clk 0:00:09.3]} 1-0

[Event "Late-Titled-Tuesday-Blitz-April-02-2024"]
[Site "Chess.com"]
[Date "2024.04.02"]
[Round "4"]
[White "SultaiC"]
[Black "Vahe_Danielyan"]
[Result "1-0"]
[WhiteElo "2523"]
[BlackElo "2644"]
[TimeControl "180+1"]
[EndTime "14:37:36 PDT"]
[Termination "SultaiC won by resignation"]

1. e4 {[%clk 0:02:50.9]} 1... e6 {[%clk 0:02:56.1]} 2. e5 {[%clk 0:02:49.5]}
2... d5 {[%clk 0:02:57]} 3. exd6 {[%clk 0:02:50.4]} 3... cxd6 {[%clk 0:02:56.4]}
4. d4 {[%clk 0:02:51.1]} 4... Nf6 {[%clk 0:02:55.6]} 5. Bd3 {[%clk 0:02:51.7]}
5... b6 {[%clk 0:02:55.7]} 6. Qf3 {[%clk 0:02:49.9]} 6... d5 {[%clk 0:02:48.7]}
7. c3 {[%clk 0:02:49.1]} 7... Bd6 {[%clk 0:02:48.3]} 8. Bg5 {[%clk 0:02:46.9]}
8... Ba6 {[%clk 0:02:48.5]} 9. Bxa6 {[%clk 0:02:44.3]} 9... Nxa6 {[%clk
0:02:48.3]} 10. Bxf6 {[%clk 0:02:41.4]} 10... Qxf6 {[%clk 0:02:47.9]} 11. Qxf6
{[%clk 0:02:41.5]} 11... gxf6 {[%clk 0:02:48.8]} 12. Nd2 {[%clk 0:02:42]} 12...
Ke7 {[%clk 0:02:48.6]} 13. Ngf3 {[%clk 0:02:42.6]} 13... b5 {[%clk 0:02:49.1]}
14. a3 {[%clk 0:02:42.6]} 14... Nb8 {[%clk 0:02:45.3]} 15. b4 {[%clk 0:02:41.2]}
15... Nd7 {[%clk 0:02:44.9]} 16. Nb3 {[%clk 0:02:38.3]} 16... Nb6 {[%clk
0:02:44.9]} 17. Nc5 {[%clk 0:02:36.7]} 17... Nc4 {[%clk 0:02:44.3]} 18. Nd2
{[%clk 0:02:35]} 18... Nb6 {[%clk 0:02:41.4]} 19. Ndb3 {[%clk 0:02:33.5]} 19...
h5 {[%clk 0:02:29.5]} 20. h4 {[%clk 0:02:16.6]} 20... Nc4 {[%clk 0:02:27.2]} 21.
g3 {[%clk 0:02:15.2]} 21... a5 {[%clk 0:02:25.5]} 22. Ke2 {[%clk 0:02:07.9]}
22... a4 {[%clk 0:02:19.8]} 23. Nd2 {[%clk 0:02:06.3]} 23... Nb6 {[%clk
0:02:19.4]} 24. Rhe1 {[%clk 0:02:02.6]} 24... Rhg8 {[%clk 0:02:16.7]} 25. Kd3
{[%clk 0:01:58.9]} 25... Bxc5 {[%clk 0:02:16.2]} 26. bxc5 {[%clk 0:01:57.8]}
26... Nc4 {[%clk 0:02:16]} 27. Reb1 {[%clk 0:01:55.2]} 27... Rab8 {[%clk
0:02:14.9]} 28. Rb4 {[%clk 0:01:55.3]} 28... Kd7 {[%clk 0:02:12.8]} 29. Ke2
{[%clk 0:01:43.9]} 29... Kc6 {[%clk 0:02:12.7]} 30. Nxc4 {[%clk 0:01:42.7]}
30... dxc4 {[%clk 0:02:06.8]} 31. Kf3 {[%clk 0:01:38.8]} 31... Rg4 {[%clk
0:02:03.7]} 32. Rab1 {[%clk 0:01:36.7]} 32... e5 {[%clk 0:02:02.2]} 33. Rxc4
{[%clk 0:01:19.6]} 33... Rd8 {[%clk 0:01:59]} 34. Rcb4 {[%clk 0:01:14.7]} 34...
exd4 {[%clk 0:01:59.1]} 35. cxd4 {[%clk 0:01:12.4]} 35... Rdxd4 {[%clk
0:01:59.4]} 36. Rxb5 {[%clk 0:01:13]} 36... Rd3+ {[%clk 0:01:59.1]} 37. Kg2
{[%clk 0:01:12]} 37... Rxa3 {[%clk 0:02:00]} 38. Ra5 {[%clk 0:01:09.4]} 38...
Rb3 {[%clk 0:01:50.8]} 39. Rc1 {[%clk 0:00:56.5]} 39... a3 {[%clk 0:01:36.8]}
40. Ra6+ {[%clk 0:00:55.7]} 40... Kb5 {[%clk 0:01:23]} 41. Rb6+ {[%clk
0:00:47.5]} 41... Ka4 {[%clk 0:01:21.7]} 42. Rxf6 {[%clk 0:00:46.4]} 42... Rg8
{[%clk 0:00:57.3]} 43. c6 {[%clk 0:00:40]} 43... a2 {[%clk 0:00:57.5]} 44. c7
{[%clk 0:00:19.7]} 44... Rb1 {[%clk 0:00:56.6]} 45. Ra6+ {[%clk 0:00:19.1]}
45... Kb3 {[%clk 0:00:56.1]} 46. Rb6+ {[%clk 0:00:17.2]} 46... Ka3 {[%clk
0:00:47.5]} 47. Rcxb1 {[%clk 0:00:17.6]} 47... axb1=Q {[%clk 0:00:47.3]} 48.
Rxb1 {[%clk 0:00:18.4]} 48... Rc8 {[%clk 0:00:47.7]} 49. Rc1 {[%clk 0:00:19.1]}
49... Kb2 {[%clk 0:00:48.2]} 50. Rc5 {[%clk 0:00:18.5]} 50... Kb3 {[%clk
0:00:48.9]} 51. Kf3 {[%clk 0:00:18.4]} 51... Kb4 {[%clk 0:00:49.8]} 52. Rc1
{[%clk 0:00:18.2]} 52... Kb5 {[%clk 0:00:50.7]} 53. Kf4 {[%clk 0:00:18.8]} 53...
Kb6 {[%clk 0:00:51.6]} 54. Kg5 {[%clk 0:00:19]} 54... Kb7 {[%clk 0:00:52.2]} 55.
Kxh5 {[%clk 0:00:19.3]} 55... Rh8+ {[%clk 0:00:53.1]} 56. Kg5 {[%clk 0:00:19.8]}
56... Kc8 {[%clk 0:00:54]} 57. h5 {[%clk 0:00:20.5]} 57... Rg8+ {[%clk
0:00:53.1]} 58. Kf6 {[%clk 0:00:20.8]} 58... Rh8 {[%clk 0:00:53.8]} 59. g4
{[%clk 0:00:20.9]} 59... Rg8 {[%clk 0:00:54.2]} 60. g5 {[%clk 0:00:21.4]} 60...
Rh8 {[%clk 0:00:54.4]} 61. h6 {[%clk 0:00:22.1]} 61... Rh7 {[%clk 0:00:54.9]}
62. f4 {[%clk 0:00:21.8]} 62... Rh8 {[%clk 0:00:54.4]} 63. f5 {[%clk 0:00:22.4]}
63... Rh7 {[%clk 0:00:54.8]} 64. g6 {[%clk 0:00:23]} 64... fxg6 {[%clk
0:00:55.7]} 65. fxg6 {[%clk 0:00:23.6]} 65... Rxh6 {[%clk 0:00:56.6]} 66. Kg5
{[%clk 0:00:24]} 66... Rh2 {[%clk 0:00:56.3]} 67. Rg1 {[%clk 0:00:23.3]} 67...
Rg2+ {[%clk 0:00:57.2]} 68. Rxg2 {[%clk 0:00:23.6]} 1-0

[Event "Late-Titled-Tuesday-Blitz-April-02-2024"]
[Site "Chess.com"]
[Date "2024.04.02"]
[Round "4"]
[White "Valiyev_Shahin"]
[Black "ProfessorChess101"]
[Result "0-1"]
[WhiteElo "2391"]
[BlackElo "2777"]
[TimeControl "180+1"]
[EndTime "14:37:36 PDT"]
[Termination "ProfessorChess101 won on time"]

1. e4 {[%clk 0:03:00.9]} 1... c5 {[%clk 0:02:59.9]} 2. Nf3 {[%clk 0:03:01]} 2...
a6 {[%clk 0:02:59.4]} 3. c4 {[%clk 0:02:59.2]} 3... e6 {[%clk 0:02:56.7]} 4. Nc3
{[%clk 0:02:57]} 4... Nc6 {[%clk 0:02:56]} 5. g3 {[%clk 0:02:57.2]} 5... Nf6
{[%clk 0:02:52.4]} 6. Bg2 {[%clk 0:02:57.5]} 6... d6 {[%clk 0:02:44.8]} 7. O-O
{[%clk 0:02:56.8]} 7... Qb6 {[%clk 0:02:40.3]} 8. b3 {[%clk 0:02:50.1]} 8... Be7
{[%clk 0:02:39.2]} 9. Bb2 {[%clk 0:02:50.1]} 9... O-O {[%clk 0:02:39.2]} 10. d4
{[%clk 0:02:47.3]} 10... Nxd4 {[%clk 0:02:30]} 11. Nxd4 {[%clk 0:02:45.7]} 11...
cxd4 {[%clk 0:02:30.9]} 12. Na4 {[%clk 0:02:45.7]} 12... Qc7 {[%clk 0:02:27.9]}
13. Qxd4 {[%clk 0:02:34.4]} 13... b5 {[%clk 0:02:05]} 14. cxb5 {[%clk
0:02:23.7]} 14... axb5 {[%clk 0:02:05.9]} 15. Rfc1 {[%clk 0:02:15.3]} 15... Qa5
{[%clk 0:01:51]} 16. Nb6 {[%clk 0:01:21.7]} 16... e5 {[%clk 0:01:36.9]} 17. Qe3
{[%clk 0:01:04.5]} 17... Ng4 {[%clk 0:01:36.8]} 18. Nxc8 {[%clk 0:00:58.9]}
18... Nxe3 {[%clk 0:01:24.3]} 19. Nxe7+ {[%clk 0:00:57.7]} 19... Kh8 {[%clk
0:01:25]} 20. fxe3 {[%clk 0:00:58.2]} 20... Qd2 {[%clk 0:01:25.4]} 21. Bc3
{[%clk 0:00:57.6]} 21... Qxe3+ {[%clk 0:01:24.6]} 22. Kh1 {[%clk 0:00:58]} 22...
Rxa2 {[%clk 0:01:20.8]} 23. Nd5 {[%clk 0:00:44]} 23... Qe2 {[%clk 0:01:02.6]}
24. Rxa2 {[%clk 0:00:35.7]} 24... Qxa2 {[%clk 0:01:03.5]} 25. Bb4 {[%clk
0:00:29.2]} 25... Rd8 {[%clk 0:00:49.6]} 26. h4 {[%clk 0:00:10.3]} 26... Qxb3
{[%clk 0:00:45.3]} 27. Kh2 {[%clk 0:00:06.4]} 27... h6 {[%clk 0:00:41.4]} 28.
Rc7 {[%clk 0:00:06.4]} 28... Kg8 {[%clk 0:00:35.4]} 29. Ne7+ {[%clk 0:00:06.6]}
29... Kh7 {[%clk 0:00:34.9]} 30. Nd5 {[%clk 0:00:06.9]} 30... Ra8 {[%clk
0:00:24.4]} 31. Rxf7 {[%clk 0:00:04.6]} 31... Ra2 {[%clk 0:00:22.9]} 32. h5
{[%clk 0:00:05.3]} 32... Kg8 {[%clk 0:00:15.4]} 33. Rf1 {[%clk 0:00:03.8]} 33...
Qc2 {[%clk 0:00:10.2]} 34. Rg1 {[%clk 0:00:02.4]} 34... Qxe4 {[%clk 0:00:09.2]}
0-1

[Event "Late-Titled-Tuesday-Blitz-April-02-2024"]
[Site "Chess.com"]
[Date "2024.04.02"]
[Round "4"]
[White "Defend1r"]
[Black "AryanTari"]
[Result "0-1"]
[WhiteElo "2659"]
[BlackElo "2966"]
[TimeControl "180+1"]
[EndTime "14:37:37 PDT"]
[Termination "AryanTari won by checkmate"]

1. e4 {[%clk 0:03:00]} 1... e5 {[%clk 0:03:00.1]} 2. Nf3 {[%clk 0:03:00.2]} 2...
Nc6 {[%clk 0:03:00.3]} 3. Bc4 {[%clk 0:03:00.5]} 3... Nf6 {[%clk 0:03:00.5]} 4.
d4 {[%clk 0:03:00.6]} 4... exd4 {[%clk 0:03:00.4]} 5. e5 {[%clk 0:03:01.5]} 5...
Ne4 {[%clk 0:02:58.7]} 6. Qe2 {[%clk 0:03:01.2]} 6... Nc5 {[%clk 0:02:57.4]} 7.
O-O {[%clk 0:03:01.7]} 7... Ne6 {[%clk 0:02:54.2]} 8. Bxe6 {[%clk 0:03:01.2]}
8... dxe6 {[%clk 0:02:53.1]} 9. Rd1 {[%clk 0:03:01.7]} 9... b6 {[%clk
0:02:28.6]} 10. Nc3 {[%clk 0:02:57.5]} 10... Bb7 {[%clk 0:02:16.6]} 11. Nb5
{[%clk 0:02:05.7]} 11... Bc5 {[%clk 0:02:15.8]} 12. Bg5 {[%clk 0:02:05.7]} 12...
Qd7 {[%clk 0:02:09]} 13. c3 {[%clk 0:02:00.3]} 13... h6 {[%clk 0:02:01.7]} 14.
Be3 {[%clk 0:01:45.3]} 14... O-O-O {[%clk 0:01:10.1]} 15. cxd4 {[%clk
0:01:17.5]} 15... Be7 {[%clk 0:01:07.6]} 16. a3 {[%clk 0:01:12.5]} 16... Kb8
{[%clk 0:01:04.1]} 17. Nc3 {[%clk 0:01:10.1]} 17... Na5 {[%clk 0:00:52.6]} 18.
b4 {[%clk 0:01:09.7]} 18... Qc6 {[%clk 0:00:52.8]} 19. Rac1 {[%clk 0:00:47.5]}
19... Nb3 {[%clk 0:00:52.8]} 20. Rc2 {[%clk 0:00:44.2]} 20... Qd7 {[%clk
0:00:47.3]} 21. Qc4 {[%clk 0:00:37.9]} 21... f6 {[%clk 0:00:35.8]} 22. Qxb3
{[%clk 0:00:35]} 22... g5 {[%clk 0:00:34.8]} 23. Rcd2 {[%clk 0:00:28.9]} 23...
g4 {[%clk 0:00:27.6]} 24. Ne1 {[%clk 0:00:29]} 24... f5 {[%clk 0:00:13.5]} 25.
d5 {[%clk 0:00:26.3]} 25... exd5 {[%clk 0:00:14.4]} 26. Nxd5 {[%clk 0:00:26.1]}
26... Qe6 {[%clk 0:00:15.1]} 27. Qa2 {[%clk 0:00:22.6]} 27... Bg5 {[%clk
0:00:07.9]} 28. Bxg5 {[%clk 0:00:11.9]} 28... hxg5 {[%clk 0:00:08.8]} 29. Qc4
{[%clk 0:00:11.4]} 29... Qxe5 {[%clk 0:00:07.3]} 30. Ne3 {[%clk 0:00:11]} 30...
Qxh2+ {[%clk 0:00:07.2]} 31. Kf1 {[%clk 0:00:10.8]} 31... Rxd2 {[%clk
0:00:05.9]} 32. Rxd2 {[%clk 0:00:10.3]} 32... g3 {[%clk 0:00:06.3]} 33. fxg3
{[%clk 0:00:05.5]} 33... Re8 {[%clk 0:00:05.2]} 34. Qd4 {[%clk 0:00:04.8]} 34...
f4 {[%clk 0:00:04.4]} 35. gxf4 {[%clk 0:00:03.4]} 35... gxf4 {[%clk 0:00:05.3]}
36. Ng4 {[%clk 0:00:03.6]} 36... Qh1+ {[%clk 0:00:05.7]} 37. Kf2 {[%clk
0:00:02.5]} 37... Qxe1# {[%clk 0:00:05.4]} 0-1

[Event "Late-Titled-Tuesday-Blitz-April-02-2024"]
[Site "Chess.com"]
[Date "2024.04.02"]
[Round "4"]
[White "Revan_2002"]
[Black "GMBenjaminBok"]
[Result "0-1"]
[WhiteElo "2736"]
[BlackElo "3012"]
[TimeControl "180+1"]
[EndTime "14:37:37 PDT"]
[Termination "GMBenjaminBok won by resignation"]

1. d4 {[%clk 0:03:00.9]} 1... Nf6 {[%clk 0:02:59.9]} 2. c4 {[%clk 0:03:01.4]}
2... e6 {[%clk 0:03:00.2]} 3. Nf3 {[%clk 0:03:02]} 3... b6 {[%clk 0:03:00.4]} 4.
a3 {[%clk 0:03:01.2]} 4... Bb7 {[%clk 0:03:00.4]} 5. Nc3 {[%clk 0:03:00.8]} 5...
d5 {[%clk 0:03:00.8]} 6. cxd5 {[%clk 0:03:01.4]} 6... Nxd5 {[%clk 0:03:01.4]} 7.
Qc2 {[%clk 0:03:00.9]} 7... Nxc3 {[%clk 0:03:01.4]} 8. bxc3 {[%clk 0:03:00.8]}
8... Nd7 {[%clk 0:03:01.6]} 9. e4 {[%clk 0:03:01.1]} 9... c5 {[%clk 0:03:01.9]}
10. Bf4 {[%clk 0:02:55.2]} 10... Be7 {[%clk 0:02:52.7]} 11. d5 {[%clk
0:02:53.4]} 11... exd5 {[%clk 0:02:46.7]} 12. exd5 {[%clk 0:02:54.3]} 12... O-O
{[%clk 0:02:30.9]} 13. Rd1 {[%clk 0:02:47]} 13... Re8 {[%clk 0:02:07.1]} 14. Be2
{[%clk 0:02:46.4]} 14... c4 {[%clk 0:01:48.8]} 15. O-O {[%clk 0:02:43.5]} 15...
b5 {[%clk 0:01:35.2]} 16. a4 {[%clk 0:02:26]} 16... a6 {[%clk 0:01:35.4]} 17.
axb5 {[%clk 0:02:16.7]} 17... axb5 {[%clk 0:01:36.3]} 18. Nd4 {[%clk 0:02:16.5]}
18... Qb6 {[%clk 0:01:34.4]} 19. Rb1 {[%clk 0:01:57.9]} 19... b4 {[%clk
0:01:34.5]} 20. Bxc4 {[%clk 0:01:51.9]} 20... Rec8 {[%clk 0:01:30.3]} 21. Nf5
{[%clk 0:00:36.7]} 21... Bf8 {[%clk 0:01:22.7]} 22. Qd3 {[%clk 0:00:19.3]} 22...
Qf6 {[%clk 0:01:00.1]} 23. cxb4 {[%clk 0:00:04.8]} 23... Rxc4 {[%clk 0:00:39.8]}
24. Qxc4 {[%clk 0:00:05.7]} 24... Qxf5 {[%clk 0:00:40.3]} 25. Rfd1 {[%clk
0:00:06.2]} 25... Nf6 {[%clk 0:00:37.1]} 26. Bg3 {[%clk 0:00:03.5]} 26... Bxd5
{[%clk 0:00:34.9]} 27. Qf4 {[%clk 0:00:03.4]} 27... Qg6 {[%clk 0:00:26.3]} 28.
b5 {[%clk 0:00:03.5]} 28... h5 {[%clk 0:00:15.6]} 29. Ra1 {[%clk 0:00:03.4]}
29... Rxa1 {[%clk 0:00:12.9]} 30. Rxa1 {[%clk 0:00:04.3]} 30... Kh7 {[%clk
0:00:13.5]} 31. b6 {[%clk 0:00:04.1]} 31... Bc5 {[%clk 0:00:11]} 32. Qe5 {[%clk
0:00:03.9]} 32... Bxb6 {[%clk 0:00:08.6]} 33. Rd1 {[%clk 0:00:04.4]} 33... Bxf2+
{[%clk 0:00:05.5]} 34. Kxf2 {[%clk 0:00:03.7]} 34... Ng4+ {[%clk 0:00:05.8]} 35.
Ke1 {[%clk 0:00:02.5]} 35... Nxe5 {[%clk 0:00:06.7]} 36. Rxd5 {[%clk 0:00:02.7]}
36... Qe4+ {[%clk 0:00:07]} 0-1

[Event "Late-Titled-Tuesday-Blitz-April-02-2024"]
[Site "Chess.com"]
[Date "2024.04.02"]
[Round "4"]
[White "Hrant_ChessMood"]
[Black "GP9isback23"]
[Result "1-0"]
[WhiteElo "2935"]
[BlackElo "2635"]
[TimeControl "180+1"]
[EndTime "14:37:39 PDT"]
[Termination "Hrant_ChessMood won on time"]

1. Nf3 {[%clk 0:02:53.4]} 1... d5 {[%clk 0:02:58.8]} 2. d4 {[%clk 0:02:51.2]}
2... Nf6 {[%clk 0:02:54.4]} 3. c4 {[%clk 0:02:51.3]} 3... e6 {[%clk 0:02:53.6]}
4. Nc3 {[%clk 0:02:50.4]} 4... Be7 {[%clk 0:02:51.8]} 5. Bf4 {[%clk 0:02:48.1]}
5... O-O {[%clk 0:02:50]} 6. e3 {[%clk 0:02:48.3]} 6... c6 {[%clk 0:02:37.4]} 7.
Rc1 {[%clk 0:02:43.6]} 7... Nbd7 {[%clk 0:02:37]} 8. h3 {[%clk 0:02:43]} 8...
dxc4 {[%clk 0:02:28.3]} 9. Bxc4 {[%clk 0:02:41.7]} 9... b5 {[%clk 0:02:27.3]}
10. Bd3 {[%clk 0:02:41.8]} 10... Bb7 {[%clk 0:02:23.2]} 11. O-O {[%clk
0:02:39.8]} 11... a6 {[%clk 0:02:22.9]} 12. Ne4 {[%clk 0:02:33.1]} 12... Nd5
{[%clk 0:02:22.1]} 13. Bd6 {[%clk 0:02:27.6]} 13... Rc8 {[%clk 0:02:15.8]} 14.
Bxe7 {[%clk 0:02:25.1]} 14... Qxe7 {[%clk 0:02:16.7]} 15. Nc5 {[%clk 0:02:26]}
15... Nxc5 {[%clk 0:02:17]} 16. Rxc5 {[%clk 0:02:26.7]} 16... Nb6 {[%clk
0:02:12.9]} 17. Ng5 {[%clk 0:01:29.7]} 17... h6 {[%clk 0:01:44.2]} 18. Ne4
{[%clk 0:01:21.6]} 18... f5 {[%clk 0:01:28.8]} 19. Nd2 {[%clk 0:01:21.9]} 19...
Nd7 {[%clk 0:01:28.8]} 20. Nb3 {[%clk 0:01:22.3]} 20... Nxc5 {[%clk 0:01:19.4]}
21. Nxc5 {[%clk 0:01:23.2]} 21... Rcd8 {[%clk 0:00:58.7]} 22. f4 {[%clk
0:01:20.9]} 22... Bc8 {[%clk 0:00:53.3]} 23. b4 {[%clk 0:01:19.8]} 23... Kh8
{[%clk 0:00:41.3]} 24. Qb3 {[%clk 0:01:15.2]} 24... Rfe8 {[%clk 0:00:36.4]} 25.
Qc3 {[%clk 0:01:15.2]} 25... Qd6 {[%clk 0:00:30.4]} 26. Bc2 {[%clk 0:01:13.8]}
26... Re7 {[%clk 0:00:27]} 27. Nd3 {[%clk 0:01:13.9]} 27... Kh7 {[%clk
0:00:23.3]} 28. Ne5 {[%clk 0:01:13.1]} 28... Bb7 {[%clk 0:00:22.8]} 29. Rc1
{[%clk 0:01:12.7]} 29... Rc7 {[%clk 0:00:21.4]} 30. a4 {[%clk 0:01:10.4]} 30...
g6 {[%clk 0:00:20.6]} 31. Bb3 {[%clk 0:01:08.6]} 31... Rdc8 {[%clk 0:00:18.2]}
32. Qd2 {[%clk 0:01:08.2]} 32... Re8 {[%clk 0:00:16.8]} 33. Rc5 {[%clk
0:01:08.2]} 33... Ree7 {[%clk 0:00:17.1]} 34. Qc3 {[%clk 0:01:08]} 34... Rg7
{[%clk 0:00:17.3]} 35. Nf3 {[%clk 0:00:48.9]} 35... Rg8 {[%clk 0:00:17]} 36. h4
{[%clk 0:00:44.8]} 36... Re8 {[%clk 0:00:14.7]} 37. Ne5 {[%clk 0:00:42.9]} 37...
h5 {[%clk 0:00:14.2]} 38. Nf3 {[%clk 0:00:42]} 38... Rec8 {[%clk 0:00:12.5]} 39.
Re5 {[%clk 0:00:42]} 39... Re8 {[%clk 0:00:12.2]} 40. Ng5+ {[%clk 0:00:42.4]}
40... Kh6 {[%clk 0:00:09.4]} 41. Bxe6 {[%clk 0:00:39.9]} 41... Ree7 {[%clk
0:00:05.5]} 42. Bb3 {[%clk 0:00:36.1]} 42... Bc8 {[%clk 0:00:05.8]} 43. d5
{[%clk 0:00:26.6]} 43... cxd5 {[%clk 0:00:06.1]} 44. Rxe7 {[%clk 0:00:26.9]} 1-0